Cogmind - Beta 13 @@@ ROGUE MODE // 2024.03.29 @ 09:57:05 Player: VLAM Result: Destroyed by Y-45 Defender with Beam Rifle Performance ------------- Evolutions (1) 500 Regions Visited (3) 600 Robots Destroyed (18) 90 Value Destroyed (406) 406 Prototype IDs (2) 40 Alien Tech Used (0) 0 Bonus (0) 0 TOTAL SCORE: 1636 Bonus ------- None Cogmind --------- Core Integrity 0/400 Matter 350/350 Energy 100/100 System Corruption 0% Temperature Cool (10) Movement Hovering (60) Location -9/Storage Parts ------- > --- POWER (1) -------- (None) > --- PROPULSION (3) --- Hover Unit > --- UTILITY (3) ------ Small Matter Pod Visual Processing Unit Visual Processing Unit > --- WEAPON (2) ------- (None) > --- INVENTORY (5) ---- Ion Engine Terrain Scan Processor Heavy EM Pulse Gun Advanced Beam Cannon Rocket Launcher Peak State ------------ > --- POWER ------------ (None) > --- PROPULSION ------- Hover Unit Improved Hover Unit > --- UTILITY ---------- Small Matter Pod Visual Processing Unit Visual Processing Unit > --- WEAPON ----------- Improved EM Shotgun > --- INVENTORY -------- Ion Engine Ion Engine Heavy EM Pulse Gun Advanced Beam Cannon Advanced Beam Cannon [Rating: 12] Favorites ----------- Power Ion Engine Engine Ion Engine Propulsion VTOL Module Hover Unit Improved Hover Unit Flight Unit VTOL Module Utility Visual Processing Unit Device High-powered Tractor Beam Storage Small Matter Pod Processor Visual Processing Unit Weapon Improved EM Shotgun Energy Gun Improved EM Shotgun Energy Cannon Advanced Beam Cannon Launcher Grenade Launcher Build | -11 -10 -9 -9 ------- Run | Yrd Mat Mat Sto Slots Evolved 2 | . . 2 . Power . | . . . . Propulsion 1 | . . 1 . Utility 1 | . . 1 . Weapon . | . . . . Parts Attached 16 | 2 5 2 7 Power 1 | 1 . . . Engine 1 | 1 . . . Core . | . . . . Reactor . | . . . . Propulsion 5 | . 2 . 3 Treads . | . . . . Leg . | . . . . Wheel . | . . . . Hover 3 | . . . 3 Flight 2 | . 2 . . Utility 4 | . 2 1 1 Device 1 | . 1 . . Storage 1 | . 1 . . Processor 2 | . . 1 1 Hackware . | . . . . Protection . | . . . . Artifact . | . . . . Weapon 6 | 1 1 1 3 Energy Gun 3 | 1 . 1 1 Energy Cannon 2 | . . . 2 Ballistic Gun . | . . . . Ballistic Cannon . | . . . . Launcher 1 | . 1 . . Special Weapon . | . . . . Impact Weapon . | . . . . Slashing Weapon . | . . . . Piercing Weapon . | . . . . Special Melee Weapon . | . . . . Unidentified Prototypes 2 | . . . 2 Parts Lost 7 | . 1 . 6 Power . | . . . . Propulsion 3 | . . . 3 Utility 1 | . . . 1 Weapon 3 | . 1 . 2 Highest Loss Streak 2 | . 1 . 2 To Critical Strikes . | . . . . Average Slot Usage (%) 46 | . 23 47 54 Hover 6 | . . . 8 Flight 5 | . 4 22 4 Device 3 | . 3 11 3 Storage 8 | . 1 11 11 Processor 10 | . . . 14 Energy Gun 6 | . 2 3 8 Energy Cannon 2 | . . . 3 Launcher 2 | . 11 . . Naked Turns . | . . . . Heaviest Build 9 | 2 4 4 9 Greatest Support 13 | 3 8 8 13 Greatest Overweight (x) 2 | . . . 2 Average Overweight (x) . | . . . . Largest Inventory Capacity 5 | 5 5 5 5 Average Capacity 5 | 5 5 5 5 Most Carried 5 | 1 5 3 5 Average Carried 3 | . 2 2 4 Final Capacity 5 | 5 5 5 5 Final Carried 5 | 1 3 2 5 Class Distribution -------------------- 100% | Mutant Dominant Class ---------------- Mutant | -10/Materials Mutant | -9/Materials Mutant | -9/Storage Resources | -11 -10 -9 -9 ----------- Run | Yrd Mat Mat Sto Matter Collected 450 | 217 28 107 98 Remotely 175 | . 25 107 43 Salvage Created 490 | . 25 10 455 Parts 34 | . 4 2 28 Haulers Intercepted . | . . . . Recyclers Shooed 1 | . . . 1 Parts Field Recycled . | . . . . Retrieved Matter . | . . . . Parts Self-Destructed . | . . . . Prevented . | . . . . Kills | -11 -10 -9 -9 ------- Run | Yrd Mat Mat Sto Combat Hostiles Destroyed 14 | . 3 . 11 Guns 6 | . . . 6 Cannons 5 | . . . 5 AOE 3 | . 3 . . Classes Destroyed 6 | . 2 1 3 Recycler 1 | . . . 1 Operator 1 | . 1 . . Watcher 2 | . . 1 1 Swarmer 7 | . 3 . 4 Grunt 6 | . . . 6 Sentry 1 | . . . 1 Best Kill Streak 4 | . 3 1 4 Combat Bots Only 4 | . 3 . 4 Max Kills in Single Turn 3 | . 3 1 1 Gunslinging . | . . . . Exploded 3 | . 3 . . Melee . | . . . . Uniques/NPCs Destroyed . | . . . . Combat | -11 -10 -9 -9 -------- Run | Yrd Mat Mat Sto Hostile Shots Fired 88 | . 6 . 82 Missed 23 | . 2 . 21 Damage Taken 942 | . 100 . 842 Core 452 | . 40 . 412 Absorbed by Shields . | . . . . Core Remaining (%) 92 | 100 84 . . Volleys Fired 50 | . 6 1 43 Largest 2 | . 1 1 2 Hottest 136 | . 30 50 136 Shots Fired 59 | . 6 1 52 Gun 31 | . . 1 30 Cannon 22 | . . . 22 Launcher 6 | . 6 . . Special . | . . . . Kinetic . | . . . . Thermal 44 | . . 1 43 Explosive 6 | . 6 . . Electromagnetic 9 | . . . 9 Robot Hit Streak 8 | . 3 1 8 Robot Miss Streak 4 | . 1 . 4 Penetration Max . | . . . . Secondary Targets . | . . . . Shots Hit Robots 41 | . 4 1 36 Core Hits 23 | . 3 1 19 Critical Kills . | . . . . Critical Parts Destroyed . | . . . . Critical Strikes 1 | . . . 1 Burn 1 | . . . 1 Melee Attacks . | . . . . Impact . | . . . . Slashing . | . . . . Piercing . | . . . . Sneak Attacks . | . . . . Combat Hostiles . | . . . . Follow-up Attacks . | . . . . Damage Inflicted 857 | . 260 12 585 Guns 331 | . . 12 319 Cannons 266 | . . . 266 Explosions 260 | . 260 . . Melee . | . . . . Ramming . | . . . . Kinetic . | . . . . Thermal 452 | . . 12 440 Explosive 260 | . 260 . . Electromagnetic 145 | . . . 145 Impact . | . . . . Slashing . | . . . . Piercing . | . . . . Highest Corruption . | . . . . Average Corruption . | . . . . Corruption Purged . | . . . . Corruption Blocked . | . . . . Overload Shots . | . . . . Overflow Damage 48 | . 48 . . Projectiles . | . . . . Explosions 48 | . 48 . . Melee . | . . . . Knockbacks . | . . . . Impact . | . . . . Kinetic . | . . . . Secondary . | . . . . Self-Inflicted Damage 67 | . 67 . . Shots 4 | . 4 . . Rammed . | . . . . Targets Rammed . | . . . . Kicked . | . . . . Crushed . | . . . . Highest Temperature 396 | . . . 396 Average Temperature 242 | . . . 242 Received Heat Transfer 309 | . . . 309 Effects 3 | . . . 3 Energy Bleed 2 | . . . 2 Damage (minor) 1 | . . . 1 Siege Activations . | . . . . Robots Corrupted . | . . . . Combat Hostiles . | . . . . Parts Fried . | . . . . Impact Corruptions . | . . . . Robots Melted . | . . . . Combat Hostiles . | . . . . Parts Melted 2 | . . . 2 Heat Transferred 1110 | . . 37 1073 Parts Sabotaged . | . . . . Parts Stolen . | . . . . Parts Stripped . | . . . . Power Chain Reactions . | . . . . Alert | -11 -10 -9 -9 ------- Run | Yrd Mat Mat Sto Peak Influence 439 | . 166 136 439 Initial 69 | . . 69 57 Average 198 | . 52 101 264 Maximum Alert Level 2 | . . . 2 Low Security (%) 53 | 100 100 100 32 Level 1 40 | . . . 59 Level 2 5 | . . . 8 Level 3 . | . . . . Level 4 . | . . . . Level 5 . | . . . . High Security . | . . . . Max Security . | . . . . Squads Dispatched 7 | . 4 . 3 Investigation 4 | . 3 . 1 Extermination . | . . . . Reinforcement 3 | . 1 . 2 Assault . | . . . . Garrison . | . . . . Intercept . | . . . . Searches Triggered . | . . . . Construction Impeded . | . . . . Haulers Reinforced . | . . . . Active Scanning Responses . | . . . . Cargo Convoy Interrupts . | . . . . Stealth | -11 -10 -9 -9 --------- Run | Yrd Mat Mat Sto Distress Signals 3 | . 1 1 1 Communications Jammed . | . . . . Distress Signals . | . . . . Times Spotted 30 | . 7 1 22 Peak Tracking Total 6 | . 4 2 6 Tactical Retreats 1 | . . . 1 Traps | -11 -10 -9 -9 ------- Run | Yrd Mat Mat Sto Traps Triggered 1 | . 1 . . Indirectly . | . . . . Trap Hack Attempts . | . . . . Triggered . | . . . . Disarmed 1 | . . . 1 Reprogrammed 3 | . 3 . . Reused 1 | . 1 . . Traps Extracted . | . . . . Installed . | . . . . Triggered 1 | . 1 . . Machines | -11 -10 -9 -9 ---------- Run | Yrd Mat Mat Sto Machines Disabled 2 | . 2 . . Max in Single Turn 2 | . 2 . . Machines Repaired . | . . . . Machines Dismantled . | . . . . Machines Sabotaged . | . . . . Overloaded Fab Kills . | . . . . Hacking | -11 -10 -9 -9 --------- Run | Yrd Mat Mat Sto Machines Accessed 8 | . 4 . 4 Terminals 6 | . 3 . 3 Fabricators . | . . . . Repair Stations . | . . . . Recycling Units 2 | . 1 . 1 Scanalyzers . | . . . . Garrison Access . | . . . . Total Hacks 20 | . 12 . 8 Successful 8 | . 3 . 5 Failed 12 | . 9 . 3 Catastrophic 2 | . 1 . 1 Database Lockouts . | . . . . Manual . | . . . . Terminals 13 | . 9 . 4 Fabricators . | . . . . Repair Stations . | . . . . Recycling Units 7 | . 3 . 4 Scanalyzers . | . . . . Garrison Access . | . . . . Terminal Hacks 5 | . 2 . 3 Open Door 1 | . . . 1 Locate Traps 1 | . 1 . . Disarm Traps 1 | . . . 1 Reprogram Traps 1 | . 1 . . Zone Layout 1 | . . . 1 Fabricator Hacks . | . . . . Repair Station Hacks . | . . . . Recycling Unit Hacks 3 | . 1 . 2 Retrieve Matter 1 | . . . 1 Retrieve Components 2 | . 1 . 1 Scanalyzer . | . . . . Garrison Access Hacks . | . . . . Unauthorized Hacks . | . . . . Terminals . | . . . . Fabricators . | . . . . Repair Stations . | . . . . Recycling Units . | . . . . Scanalyzers . | . . . . Garrison Access . | . . . . Data Cores Recovered 1 | . . . 1 Used . | . . . . Hacking Detections 6 | . 3 . 3 Full Trace Events 3 | . 2 . 1 Feedback Events . | . . . . Feedback Blocked . | . . . . Robot Schematics Acquired . | . . . . Robots Built . | . . . . Authchips . | . . . . Time . | . . . . Total Robot Build Rating . | . . . . Part Schematics Acquired . | . . . . Parts Built . | . . . . Authchips . | . . . . Time . | . . . . Total Part Build Rating . | . . . . Parts Repaired . | . . . . Time . | . . . . Parts Recycled . | . . . . Recycled Matter . | . . . . Retrieved Matter . | . . . . Retrieved Components 4 | . 3 . 1 Parts Scanalyzed . | . . . . Part Schematics Acquired . | . . . . Parts Damaged . | . . . . Bothacking | -11 -10 -9 -9 ------------ Run | Yrd Mat Mat Sto Used RIF Installer . | . . . . Robots Hacked . | . . . . Non-combat . | . . . . Combat . | . . . . Robot Hacks Applied . | . . . . Relay Couplers Released . | . . . . Fabnet Peak Effective % . | . . . . Robots Rewired . | . . . . Allies Hacked . | . . . . Hacks Repelled . | . . . . Allies | -11 -10 -9 -9 -------- Run | Yrd Mat Mat Sto Total Allies . | . . . . Largest Group . | . . . . Highest-Rated Group . | . . . . Highest-Rated Ally . | . . . . Total Orders . | . . . . Ally Attacks . | . . . . Total Damage . | . . . . Kills . | . . . . Allies Corrupted . | . . . . Allies Melted . | . . . . Intel | -11 -10 -9 -9 ------- Run | Yrd Mat Mat Sto Robot Analysis Total . | . . . . Derelict Logs Recovered . | . . . . Drone Launches . | . . . . Drone Recoveries . | . . . . Exploration | -11 -10 -9 -9 ------------- Run | Yrd Mat Mat Sto Turns Passed 526 | 17 118 32 359 Spaces Moved 715 | 28 200 80 407 Core 226 | 28 142 . 56 Treads . | . . . . Legs . | . . . . Wheels . | . . . . Hover 240 | . . . 240 Flight 249 | . 58 80 111 Fastest Speed 34 | 50 34 34 34 Average Speed 50 | 50 45 34 55 Slowest Speed 150 | 50 50 34 150 Overloaded Moves . | . . . . Propulsion Burnouts . | . . . . Robots Hopped 2 | . . . 2 Cave-ins Triggered . | . . . . Exploration Rate (%) 31 | 3 46 10 68 Regions Visited 3 Branch Regions 1 Pre-discovered Areas . | . . . . Known Exits Taken . | . . . . Unknown Exits Taken 3 | 1 1 1 . Scrap Searched . | . . . . Spaces Dug . | . . . . Terrain Destroyed 38 | . 38 . . Melee . | . . . . Projectile . | . . . . AOE 38 | . 38 . . Terrain Rammed . | . . . . Walls Destroyed . | . . . . Machines Disabled . | . . . . Actions | -11 -10 -9 -9 --------- Run | Yrd Mat Mat Sto Total 817 | 30 219 82 486 Wait 22 | . 4 . 18 Move 708 | 27 199 79 403 Hop 2 | . . . 2 Pick Up 9 | . 4 . 5 Fast Attach 10 | 2 2 1 5 Attach 6 | . 3 1 2 Detach 5 | 1 1 . 3 Swap . | . . . . Drop 3 | . . . 3 Fire 50 | . 6 1 43 Melee . | . . . . Ram . | . . . . Kick . | . . . . Crush . | . . . . Escape Stasis . | . . . . Rewire 2 | . . . 2 Trap . | . . . . Miscellaneous . | . . . . Route ------- -11/Scrapyard -10/Materials -9/Materials -9/Storage (discovered 1 exit: [*Mat]) History --------- Turn | Location | Event 2 | -11/Scrapyard | Met Revision 17 4 | -11/Scrapyard | Discovered new exit (range 15) 18 | -11/Scrapyard | Entered Materials 132 | -10/Materials | Discovered new exit (range 7) 136 | -10/Materials | Entered another Materials area 136 | -9/Materials | Evolved 2 slots: Propulsion x1, Utility x1 165 | -9/Materials | Discovered new exit (range 6) 168 | -9/Materials | Entered Storage 312 | -9/Storage | Build established: Mutant 314 | -9/Storage | Core integrity fell below 50% 515 | -9/Storage | Core integrity fell below 20% 522 | -9/Storage | Discovered new exit (range 15) 527 | -9/Storage | Destroyed by Y-45 Defender with Beam Rifle Last Messages --------------- U-05 Engineer is broken beyond repair. Attempting to rewire U-05 Engineer. U-05 Engineer is broken beyond repair. K-01 Serf collects debris. Connecting with Terminal... >>Layout(Zone) Retrieving Zone 5R layout... Downloaded map data. O-16 Technician: "IFF HANDSHAKE FAILED. SECURING TERMINAL." Compression Vault explodes. Imp. Hover Unit destroyed. Compression Vault explodes. O-16 Technician destroyed. Acquired data core, extracted dynamic key. Decrypted 3 local trap positions from data. Imp. EM Shotgun destroyed. EXIT=FOUND Critical hit (Burn: +37). The unstable cave ceiling collapses. Map ----- +----------------------------------------------------+ | | | | | | | | | | | | | | | ???????????????????????????????????????? | | ???????????????????????????????????????? | | ???????????????????????????????????????? | | ?????????????????#####?????????????????? | | ######???????????#"""#???####??????????? | | #???????????#"R"#?## #??????????? | | #????????####" "## # < #??????????? | | #####????# [ # #??????????? | | ###### # #??????????? | | ""## # #??????????? | | """ T"## #??????????? | | ]] T" ""## ^^^#??????????? | | ]] """ #### ! #??????????? | | #??????????? | | | #### #??????????? | | ##"T"#####??# # # #??????????? | | ?#"""#??????###### # ### #??????????? | | ?#####??????# # #??????????? | | ????????????# #@ #??????????? | | ????????????# # #??????????? | | ????????????# + #??????????? | | ????????????# # #??????????? | | ????????????# # #??????????? | | ????????????# # #??????????? | | ??????????############### #??????????? | | ??????????##### ????? ??????????? | | ??????????## ## ????? Y #?????????? | | ??????????##"## ????? #?????????? | | #?????????#T ## ????? +?????????? | | #?????????##+## ????? #?????????? | | #??????????# + ?????## ###?????????? | | ?????????????????????????? #???????????? | | ?????????????????????????? #???????????? | | ##???????????????????????? #???????????? | | #???????????????????????? #???????????? | | #???????????????????????? #???????????? | | #???????????????????????? ????????????? | | ##???????????????????????? ????????????? | | ?????#####???????????????? ????????????? | | ###?? #?????????????????????????????? | | #?? ?????????????????????????????? | | #?? ??????????????????????????????? | | #?? ??????????????????????????????? | +----------------------------------------------------+ Best States ------------- Heat Dissipation 28 Energy Generation 5 Energy Capacity 100 Matter Stores 350 Matter Capacity 350 Sight Range 18 Terrain Scan Density 10 Evasion (%) 63 Item Schematics ----------------- None Robot Schematics ------------------ None Fabricated ------------ Nothing Alien Tech Used ----------------- None Achievements -------------- Use The Force Challenges ------------ None Game ------ Seed PowerDisruptionSubcomponent Manual? 0 Play Time 00:14:01 Cumulative 9.7 hours Start 2024.03.29 @ 09:43:46 End 2024.03.29 @ 09:57:05 Sessions 1 Manual Loads 0 Difficulty Rogue Special Mode None Game No. 13 Rogue 13 Adventurer 0 Explorer 0 Win Type - Total 0 Types 0/0/0/0/0/0/0/0/0 Lore% 2 Gallery% 15 Achievement% 12 Wizard Run 0 Options --------- Layout 1 ASCII 0 Keyboard 1 Movement Numpad Keybinds 0 Fullscreen 2 Font 24/Smallcaps Map View 50x35 Zoom Use 0% Tactical HUD 0 Map Filters NONE Filters NONE Steam 1 RUN: 15341477-c775-431f-9ef8-63e647210713